Workbook

Sheet Instructions

Sheet Meta data_sheet
A1: Ambient Monitoring Station | B1: Details | D1: Ambient Monitoring Results | E1: Details
A2: Location | B2: Maules Creek | D2: PM2.5 monitoring start (dd/mm/yyyy hh:mm) | E2: 2025-06-01
A3: Easting | B3: =VLOOKUP($B$2,'Meta data_lookup'!$A$2:$D$5,2,FALSE) -> 225302 | D3: PM2.5 monitoring end | E3: 2025-06-30
A4: Northing | B4: =VLOOKUP($B$2,'Meta data_lookup'!$A$2:$D$5,3,FALSE) -> 6623037 | D4: PM2.5 monitoring period (h) | E4: =(E3-E2)*24 -> 696
A5: Site elevation (m) | B5: =VLOOKUP($B$2,'Meta data_lookup'!$A$2:$D$5,4,FALSE) -> ND | D5: Number of valid PM2.5 results | E5: =COUNTIF('Raw data_sheet'!G2:G745,"Valid") -> 614
A6: Description of surrounding land use | B6: Agriculture/Mining | D6: Proportion of valid PM2.5 results (%) | E6: =E5/E4 -> 0.882183908
A7: Typical sources impacting on the site | B7: Agriculture/Mining/Unsealed Roads | D7: PM10 monitoring start (dd/mm/yyyy hh:mm) | E7: 2025-06-01
A8: Site compliance with AS/NZS 3580.1.1:2007 | B8: Yes | D8: PM10 monitoring end | E8: 2025-06-30
A9: PM2.5 method compliance with AS/NZS 3580.9.13:2013 | B9: Yes | D9: PM10 monitoring period (h) | E9: =(E8-E7)*24 -> 696
A10: PM2.5 instrument make | B10: Thermo Scientific | D10: Number of valid PM10 results | E10: =COUNTIF('Raw data_sheet'!J2:J745,"Valid") -> 614
A11: PM2.5 instrument model | B11: 1405DF | D11: Proportion of valid PM10 results (%) | E11: =E10/E9 -> 0.882183908
A12: PM2.5 instrument intake height (m) | B12: 3.5
A13: PM10 method compliance with AS 3580.9.8-2008 | B13: No*
A14: PM10 instrument make | B14: Thermo Scientific
A15: PM10 instrument model | B15: 1405DF
A16: PM10 instrument intake height (m) | B16: 3.5
A17: *The 1405DF TEOM used at this site measures PM10 indirectly rather than directly. The unit does however meet the intent of AS 3580.9.8-2008, and this method has been accredited by the USEPA. It is considered scientifically robust and is used extensively throughout NSW with EPA's knowledge and informal acceptance.

Sheet Meta data_lookup
A1: Location | B1: Easting | C1: Northing | D1: Site elevation (m)
A2: Maules Creek | B2: 225302 | C2: 6623037 | D2: ND
A3: Breeza | B3: 237993 | C3: 6542606 | D3: ND
A4: Will-gai | B4: 231804 | C4: 6596392 | D4: ND
A5: Werris Creek | B5: 276783 | C5: 6528734 | D5: ND

Sheet Raw data_sheet
A1: Year | B1: Month | C1: Day | D1: Hour | E1: Date and time | F1: PM2.5_hourly | G1: PM2.5_Data_Status | H1: PM2.5_24hr_rolling_average | I1: PM10_hourly | J1: PM10_Data_Status | K1: PM10_24hr_rolling_average | L1: Cause of data invalidity, if applicable | M1: Detailed comments | N1: PM2.5_hourly_valid_plot | O1: PM2.5_24hr_rolling_ave_valid_plot | P1: PM10_hourly_valid_plot | Q1: PM10_24hr_rolling_ave_valid_plot | R1: PM10_hourly_valid_plot_series | S1: PM10_24hr_rolling_average_valid_plot_series | T1: PM2.5_hourly_valid_plot_series | U1: PM2.5_24hr_rolling_average_valid_plot_series
A2: 2025 | B2: 6 | C2: 1 | D2: 0 | E2: =DATE(A2,B2,C2)+TIME(D2,0,0) -> 45809 | F2: 4.17 | G2: Valid | H2: 2.574583333 | I2: 4.28 | J2: Valid | K2: 4.649583333 | N2: =IF(G2="Valid", F2, NA()) -> 4.17 | O2: =IF(G2="Valid", H2, NA()) -> 2.574583333 | P2: =IF(J2="Valid", I2, NA()) -> 4.28 | Q2: =IF(J2="Valid", K2, NA()) -> 4.649583333 | R2: 4.28 | S2: 4.649583333 | T2: 4.17 | U2: 2.574583333
A3: 2025 | B3: 6 | C3: =C2 -> 1 | D3: =IF(D2=23,0,D2+1) -> 1 | E3: =E2+0.0416666666666666 -> 45809.04167 | F3: 5.16 | G3: Valid | H3: 2.7675 | I3: 6.17 | J3: Valid | K3: 4.8225 | N3: 5.16 | O3: =IF(G3="Valid", H3, NA()) -> 2.7675 | P3: 6.17 | Q3: 4.8225 | R3: 6.17 | S3: 4.8225 | T3: 5.16 | U3: 2.7675
A4: 2025 | B4: 6 | C4: =C3 -> 1 | D4: =IF(D3=23,0,D3+1) -> 2 | E4: =E3+0.0416666666666666 -> 45809.08333 | F4: 0.41 | G4: Valid | H4: 2.758333333 | I4: 2.51 | J4: Valid | K4: 4.85375 | N4: 0.41 | O4: 2.758333333 | P4: 2.51 | Q4: 4.85375 | R4: 2.51 | S4: 4.85375 | T4: 0.41 | U4: 2.758333333
A5: 2025 | B5: 6 | C5: 1 | D5: 3 | E5: 45809.125 | F5: 0.41 | G5: Valid | H5: 2.62375 | I5: 3.2 | J5: Valid | K5: 4.775 | N5: 0.41 | O5: 2.62375 | P5: 3.2 | Q5: 4.775 | R5: 3.2 | S5: 4.775 | T5: 0.41 | U5: 2.62375
A6: 2025 | B6: 6 | C6: 1 | D6: 4 | E6: 45809.16667 | F6: 1.97 | G6: Valid | H6: 2.607083333 | I6: 3.8 | J6: Valid | K6: 4.80125 | N6: 1.97 | O6: 2.607083333 | P6: 3.8 | Q6: 4.80125 | R6: 3.8 | S6: 4.80125 | T6: 1.97 | U6: 2.607083333
A7: 2025 | B7: 6 | C7: 1 | D7: 5 | E7: 45809.20833 | F7: 1.97 | G7: Valid | H7: 2.665 | I7: 2.72 | J7: Valid | K7: 4.832916667 | N7: 1.97 | O7: 2.665 | P7: 2.72 | Q7: 4.832916667 | R7: 2.72 | S7: 4.832916667 | T7: 1.97 | U7: 2.665
A8: 2025 | B8: 6 | C8: 1 | D8: 6 | E8: 45809.25 | F8: 2.18 | G8: Valid | H8: 2.731666667 | I8: 3.57 | J8: Valid | K8: 4.735416667 | N8: 2.18 | O8: 2.731666667 | P8: 3.57 | Q8: 4.735416667 | R8: 3.57 | S8: 4.735416667 | T8: 2.18 | U8: 2.731666667
A9: 2025 | B9: 6 | C9: 1 | D9: 7 | E9: 45809.29167 | F9: -2.77 | G9: Valid | H9: 2.422083333 | I9: -2.08 | J9: Valid | K9: 4.46125 | N9: -2.77 | O9: 2.422083333 | P9: -2.08 | Q9: 4.46125 | R9: -2.08 | S9: 4.46125 | T9: -2.77 | U9: 2.422083333
A10: 2025 | B10: 6 | C10: 1 | D10: 8 | E10: 45809.33333 | F10: 2.05 | G10: Valid | H10: 2.277083333 | I10: 4.47 | J10: Valid | K10: 4.31875 | N10: 2.05 | O10: 2.277083333 | P10: 4.47 | Q10: 4.31875 | R10: 4.47 | S10: 4.31875 | T10: 2.05 | U10: 2.277083333
A11: 2025 | B11: 6 | C11: 1 | D11: 9 | E11: 45809.375 | F11: 4.88 | G11: Valid | H11: 2.244166667 | I11: 9.78 | J11: Valid | K11: 4.310833333 | N11: 4.88 | O11: 2.244166667 | P11: 9.78 | Q11: 4.310833333 | R11: 9.78 | S11: 4.310833333 | T11: 4.88 | U11: 2.244166667
A12: 2025 | B12: 6 | C12: 1 | D12: 10 | E12: 45809.41667 | F12: 6.23 | G12: Valid | H12: 2.2675 | I12: 14.18 | J12: Valid | K12: 4.59875 | N12: 6.23 | O12: 2.2675 | P12: 14.18 | Q12: 4.59875 | R12: 14.18 | S12: 4.59875 | T12: 6.23 | U12: 2.2675
A13: 2025 | B13: 6 | C13: 1 | D13: 11 | E13: 45809.45833 | F13: 4.22 | G13: Valid | H13: 2.31 | I13: 17.49 | J13: Valid | K13: 5.037083333 | N13: 4.22 | O13: 2.31 | P13: 17.49 | Q13: 5.037083333 | R13: 17.49 | S13: 5.037083333 | T13: 4.22 | U13: 2.31
A14: 2025 | B14: 6 | C14: 1 | D14: 12 | E14: 45809.5 | F14: 3.45 | G14: Valid | H14: 2.392083333 | I14: 11.24 | J14: Valid | K14: 5.215 | N14: 3.45 | O14: 2.392083333 | P14: 11.24 | Q14: 5.215 | R14: 11.24 | S14: 5.215 | T14: 3.45 | U14: 2.392083333
A15: 2025 | B15: 6 | C15: 1 | D15: 13 | E15: 45809.54167 | F15: 3.81 | G15: Valid | H15: 2.444166667 | I15: 11.24 | J15: Valid | K15: 5.464583333 | N15: 3.81 | O15: 2.444166667 | P15: 11.24 | Q15: 5.464583333 | R15: 11.24 | S15: 5.464583333 | T15: 3.81 | U15: 2.444166667
A16: 2025 | B16: 6 | C16: 1 | D16: 14 | E16: 45809.58333 | F16: 4.02 | G16: Valid | H16: 2.432916667 | I16: 21.21 | J16: Valid | K16: 6.030833333 | N16: 4.02 | O16: 2.432916667 | P16: 21.21 | Q16: 6.030833333 | R16: 21.21 | S16: 6.030833333 | T16: 4.02 | U16: 2.432916667
A17: 2025 | B17: 6 | C17: 1 | D17: 15 | E17: 45809.625 | F17: 5.3 | G17: Valid | H17: 2.562916667 | I17: 21.93 | J17: Valid | K17: 6.627083333 | N17: 5.3 | O17: 2.562916667 | P17: 21.93 | Q17: 6.627083333 | R17: 21.93 | S17: 6.627083333 | T17: 5.3 | U17: 2.562916667
A18: 2025 | B18: 6 | C18: 1 | D18: 16 | E18: 45809.66667 | F18: 4.67 | G18: Valid | H18: 2.628333333 | I18: 15.32 | J18: Valid | K18: 6.99 | N18: 4.67 | O18: 2.628333333 | P18: 15.32 | Q18: 6.99 | R18: 15.32 | S18: 6.99 | T18: 4.67 | U18: 2.628333333
A19: 2025 | B19: 6 | C19: 1 | D19: 17 | E19: 45809.70833 | F19: 0.99 | G19: Valid | H19: 2.540416667 | I19: 4.13 | J19: Valid | K19: 6.969583333 | N19: 0.99 | O19: 2.540416667 | P19: 4.13 | Q19: 6.969583333 | R19: 4.13 | S19: 6.969583333 | T19: 0.99 | U19: 2.540416667
A20: 2025 | B20: 6 | C20: 1 | D20: 18 | E20: 45809.75 | F20: 0.08 | G20: Valid | H20: 2.449583333 | I20: 6.5 | J20: Valid | K20: 7.167916667 | N20: 0.08 | O20: 2.449583333 | P20: 6.5 | Q20: 7.167916667 | R20: 6.5 | S20: 7.167916667 | T20: 0.08 | U20: 2.449583333
A21: 2025 | B21: 6 | C21: 1 | D21: 19 | E21: 45809.79167 | F21: 0.52 | G21: Valid | H21: 2.51125 | I21: 4.15 | J21: Valid | K21: 7.355416667 | N21: 0.52 | O21: 2.51125 | P21: 4.15 | Q21: 7.355416667 | R21: 4.15 | S21: 7.355416667 | T21: 0.52 | U21: 2.51125
A22: 2025 | B22: 6 | C22: 1 | D22: 20 | E22: 45809.83333 | F22: 2.64 | G22: Valid | H22: 2.659583333 | I22: 5.19 | J22: Valid | K22: 7.571666667 | N22: 2.64 | O22: 2.659583333 | P22: 5.19 | Q22: 7.571666667 | R22: 5.19 | S22: 7.571666667 | T22: 2.64 | U22: 2.659583333
A23: 2025 | B23: 6 | C23: 1 | D23: 21 | E23: 45809.875 | F23: 1.78 | G23: Valid | H23: 2.69875 | I23: 5.19 | J23: Valid | K23: 7.787916667 | N23: 1.78 | O23: 2.69875 | P23: 5.19 | Q23: 7.787916667 | R23: 5.19 | S23: 7.787916667 | T23: 1.78 | U23: 2.69875
A24: 2025 | B24: 6 | C24: 1 | D24: 22 | E24: 45809.91667 | F24: 2.3 | G24: Valid | H24: 2.692083333 | I24: 4.02 | J24: Valid | K24: 7.770833333 | N24: 2.3 | O24: 2.692083333 | P24: 4.02 | Q24: 7.770833333 | R24: 4.02 | S24: 7.770833333 | T24: 2.3 | U24: 2.692083333
A25: 2025 | B25: 6 | C25: =C24 -> 1 | D25: 23 | E25: 45809.95833 | F25: 1.76 | G25: Valid | H25: 2.591666667 | I25: 2.82 | J25: Valid | K25: 7.62625 | N25: 1.76 | O25: 2.591666667 | P25: 2.82 | Q25: 7.62625 | R25: 2.82 | S25: 7.62625 | T25: 1.76 | U25: 2.591666667
A26: 2025 | B26: 6 | C26: =C2+1 -> 2 | D26: 0 | E26: 45810 | F26: 1.78 | G26: Valid | H26: 2.492083333 | I26: 3.81 | J26: Valid | K26: 7.606666667 | N26: 1.78 | O26: 2.492083333 | P26: 3.81 | Q26: 7.606666667 | R26: 3.81 | S26: 7.606666667 | T26: 1.78 | U26: 2.492083333
A27: 2025 | B27: 6 | C27: =C3+1 -> 2 | D27: 1 | E27: 45810.04167 | F27: -1.93 | G27: Valid | H27: 2.196666667 | I27: -0.7 | J27: Valid | K27: 7.320416667 | N27: -1.93 | O27: 2.196666667 | P27: -0.7 | Q27: 7.320416667 | R27: -0.7 | S27: 7.320416667 | T27: -1.93 | U27: 2.196666667
A28: 2025 | B28: 6 | C28: 2 | D28: 2 | E28: 45810.08333 | F28: -1.5 | G28: Valid | H28: 2.117083333 | I28: 0.35 | J28: Valid | K28: 7.230416667 | N28: -1.5 | O28: 2.117083333 | P28: 0.35 | Q28: 7.230416667 | R28: 0.35 | S28: 7.230416667 | T28: -1.5 | U28: 2.117083333
A29: 2025 | B29: 6 | C29: 2 | D29: 3 | E29: 45810.125 | F29: -0.69 | G29: Valid | H29: 2.07125 | I29: 0.48 | J29: Valid | K29: 7.117083333 | N29: -0.69 | O29: 2.07125 | P29: 0.48 | Q29: 7.117083333 | R29: 0.48 | S29: 7.117083333 | T29: -0.69 | U29: 2.07125
A30: 2025 | B30: 6 | C30: 2 | D30: 4 | E30: 45810.16667 | F30: -2.03 | G30: Valid | H30: 1.904583333 | I30: -0.79 | J30: Valid | K30: 6.925833333 | N30: -2.03 | O30: 1.904583333 | P30: -0.79 | Q30: 6.925833333 | R30: -0.79 | S30: 6.925833333 | T30: -2.03 | U30: 1.904583333
A31: 2025 | B31: 6 | C31: 2 | D31: 5 | E31: 45810.20833 | F31: 0.04 | G31: Valid | H31: 1.824166667 | I31: 1.5 | J31: Valid | K31: 6.875 | N31: 0.04 | O31: 1.824166667 | P31: 1.5 | Q31: 6.875 | R31: 1.5 | S31: 6.875 | T31: 0.04 | U31: 1.824166667
A32: 2025 | B32: 6 | C32: 2 | D32: 6 | E32: 45810.25 | F32: 1.01 | G32: Valid | H32: 1.775416667 | I32: 2.35 | J32: Valid | K32: 6.824166667 | N32: 1.01 | O32: 1.775416667 | P32: 2.35 | Q32: 6.824166667 | R32: 2.35 | S32: 6.824166667 | T32: 1.01 | U32: 1.775416667
A33: 2025 | B33: 6 | C33: 2 | D33: 7 | E33: 45810.29167 | F33: 0.61 | G33: Valid | H33: 1.91625 | I33: 3.78 | J33: Valid | K33: 7.068333333 | N33: 0.61 | O33: 1.91625 | P33: 3.78 | Q33: 7.068333333 | R33: 3.78 | S33: 7.068333333 | T33: 0.61 | U33: 1.91625
A34: 2025 | B34: 6 | C34: 2 | D34: 8 | E34: 45810.33333 | F34: 1.72 | G34: Valid | H34: 1.9025 | I34: 4.34 | J34: Valid | K34: 7.062916667 | N34: 1.72 | O34: 1.9025 | P34: 4.34 | Q34: 7.062916667 | R34: 4.34 | S34: 7.062916667 | T34: 1.72 | U34: 1.9025
A35: 2025 | B35: 6 | C35: 2 | D35: 9 | E35: 45810.375 | F35: 4.14 | G35: Valid | H35: 1.871666667 | I35: 7.13 | J35: Valid | K35: 6.9525 | N35: 4.14 | O35: 1.871666667 | P35: 7.13 | Q35: 6.9525 | R35: 7.13 | S35: 6.9525 | T35: 4.14 | U35: 1.871666667
A36: 2025 | B36: 6 | C36: 2 | D36: 10 | E36: 45810.41667 | F36: 5.16 | G36: Valid | H36: 1.827083333 | I36: 10.17 | J36: Valid | K36: 6.785416667 | N36: 5.16 | O36: 1.827083333 | P36: 10.17 | Q36: 6.785416667 | R36: 10.17 | S36: 6.785416667 | T36: 5.16 | U36: 1.827083333
A37: 2025 | B37: 6 | C37: 2 | D37: 11 | E37: 45810.45833 | F37: 4.77 | G37: Valid | H37: 1.85 | I37: 9.92 | J37: Valid | K37: 6.47 | N37: 4.77 | O37: 1.85 | P37: 9.92 | Q37: 6.47 | R37: 9.92 | S37: 6.47 | T37: 4.77 | U37: 1.85
A38: 2025 | B38: 6 | C38: 2 | D38: 12 | E38: 45810.5 | F38: 4.77 | G38: Valid | H38: 1.905 | I38: 7.4 | J38: Valid | K38: 6.31 | N38: 4.77 | O38: 1.905 | P38: 7.4 | Q38: 6.31 | R38: 7.4 | S38: 6.31 | T38: 4.77 | U38: 1.905
A39: 2025 | B39: 6 | C39: 2 | D39: 13 | E39: 45810.54167 | F39: 2.79 | G39: Valid | H39: 1.8625 | I39: 19 | J39: Valid | K39: 6.633333333 | N39: 2.79 | O39: 1.8625 | P39: 19 | Q39: 6.633333333 | R39: 19 | S39: 6.633333333 | T39: 2.79 | U39: 1.8625
A40: 2025 | B40: 6 | C40: 2 | D40: 14 | E40: 45810.58333 | F40: 0.88 | G40: Valid | H40: 1.731666667 | I40: 7.99 | J40: Valid | K40: 6.0825 | N40: 0.88 | O40: 1.731666667 | P40: 7.99 | Q40: 6.0825 | R40: 7.99 | S40: 6.0825 | T40: 0.88 | U40: 1.731666667
A41: 2025 | B41: 6 | C41: 2 | D41: 15 | E41: 45810.625 | F41: 1.09 | G41: Valid | H41: 1.55625 | I41: 3.18 | J41: Valid | K41: 5.30125 | N41: 1.09 | O41: 1.55625 | P41: 3.18 | Q41: 5.30125 | R41: 3.18 | S41: 5.30125 | T41: 1.09 | U41: 1.55625
A42: 2025 | B42: 6 | C42: 2 | D42: 16 | E42: 45810.66667 | F42: 1.09 | G42: Valid | H42: 1.407083333 | I42: 3.61 | J42: Valid | K42: 4.813333333 | N42: 1.09 | O42: 1.407083333 | P42: 3.61 | Q42: 4.813333333 | R42: 3.61 | S42: 4.813333333 | T42: 1.09 | U42: 1.407083333
A43: 2025 | B43: 6 | C43: 2 | D43: 17 | E43: 45810.70833 | F43: 3.77 | G43: Valid | H43: 1.522916667 | I43: 12.19 | J43: Valid | K43: 5.149166667 | N43: 3.77 | O43: 1.522916667 | P43: 12.19 | Q43: 5.149166667 | R43: 12.19 | S43: 5.149166667 | T43: 3.77 | U43: 1.522916667
A44: 2025 | B44: 6 | C44: 2 | D44: 18 | E44: 45810.75 | F44: 1.57 | G44: Valid | H44: 1.585 | I44: 8.45 | J44: Valid | K44: 5.230416667 | N44: =IF(G44="Valid", F44, NA()) -> 1.57 | O44: 1.585 | P44: 8.45 | Q44: 5.230416667 | R44: 8.45 | S44: 5.230416667 | T44: 1.57 | U44: 1.585
A45: 2025 | B45: 6 | C45: 2 | D45: 19 | E45: 45810.79167 | F45: 2.14 | G45: Valid | H45: 1.6525 | I45: 6.04 | J45: Valid | K45: 5.309166667 | N45: 2.14 | O45: 1.6525 | P45: 6.04 | Q45: 5.309166667 | R45: 6.04 | S45: 5.309166667 | T45: 2.14 | U45: 1.6525
A46: 2025 | B46: 6 | C46: 2 | D46: 20 | E46: 45810.83333 | F46: 1.84 | G46: Valid | H46: 1.619166667 | I46: 5.06 | J46: Valid | K46: 5.30375 | N46: 1.84 | O46: =IF(G46="Valid", H46, NA()) -> 1.619166667 | P46: =IF(J46="Valid", I46, NA()) -> 5.06 | Q46: 5.30375 | R46: 5.06 | S46: 5.30375 | T46: 1.84 | U46: 1.619166667
A47: 2025 | B47: 6 | C47: 2 | D47: 21 | E47: 45810.875 | F47: 1.64 | G47: Valid | H47: 1.613333333 | I47: 2.95 | J47: Valid | K47: 5.210416667 | N47: 1.64 | O47: 1.613333333 | P47: 2.95 | Q47: 5.210416667 | R47: 2.95 | S47: 5.210416667 | T47: 1.64 | U47: 1.613333333
A48: 2025 | B48: 6 | C48: 2 | D48: 22 | E48: 45810.91667 | F48: -0.7 | G48: Valid | H48: 1.488333333 | I48: 0.73 | J48: Valid | K48: 5.073333333 | N48: -0.7 | O48: 1.488333333 | P48: 0.73 | Q48: 5.073333333 | R48: 0.73 | S48: 5.073333333 | T48: -0.7 | U48: 1.488333333
A49: 2025 | B49: 6 | C49: 2 | D49: 23 | E49: 45810.95833 | F49: 3.48 | G49: Valid | H49: 1.56 | I49: 4.69 | J49: Valid | K49: 5.15125 | N49: 3.48 | O49: 1.56 | P49: 4.69 | Q49: 5.15125 | R49: 4.69 | S49: 5.15125 | T49: 3.48 | U49: 1.56
A50: 2025 | B50: 6 | C50: 3 | D50: 0 | E50: 45811 | F50: -0.07 | G50: Valid | H50: 1.482916667 | I50: 1.76 | J50: Valid | K50: 5.065833333 | N50: -0.07 | O50: 1.482916667 | P50: 1.76 | Q50: 5.065833333 | R50: 1.76 | S50: 5.065833333 | T50: -0.07 | U50: 1.482916667
A51: 2025 | B51: 6 | C51: 3 | D51: 1 | E51: 45811.04167 | F51: -0.44 | G51: Valid | H51: 1.545 | I51: 1.09 | J51: Valid | K51: 5.140416667 | N51: -0.44 | O51: 1.545 | P51: 1.09 | Q51: 5.140416667 | R51: 1.09 | S51: 5.140416667 | T51: -0.44 | U51: 1.545
A52: 2025 | B52: 6 | C52: 3 | D52: 2 | E52: 45811.08333 | F52: -0.44 | G52: Valid | H52: 1.589166667 | I52: -0.55 | J52: Valid | K52: 5.102916667 | N52: -0.44 | O52: 1.589166667 | P52: -0.55 | Q52: 5.102916667 | R52: -0.55 | S52: 5.102916667 | T52: -0.44 | U52: 1.589166667
A53: 2025 | B53: 6 | C53: 3 | D53: 3 | E53: 45811.125 | F53: 1.76 | G53: Valid | H53: 1.69125 | I53: 4.11 | J53: Valid | K53: 5.254166667 | N53: 1.76 | O53: 1.69125 | P53: 4.11 | Q53: 5.254166667 | R53: 4.11 | S53: 5.254166667 | T53: 1.76 | U53: 1.69125
A54: 2025 | B54: 6 | C54: 3 | D54: 4 | E54: 45811.16667 | F54: 1.76 | G54: Valid | H54: 1.849166667 | I54: -3 | J54: Valid | K54: 5.162083333 | N54: 1.76 | O54: 1.849166667 | P54: -3 | Q54: 5.162083333 | R54: -3 | S54: 5.162083333 | T54: 1.76 | U54: 1.849166667
A55: 2025 | B55: 6 | C55: 3 | D55: 5 | E55: 45811.20833 | F55: -3.26 | G55: Valid | H55: 1.711666667 | I55: -2.42 | J55: Valid | K55: 4.99875 | N55: -3.26 | O55: 1.711666667 | P55: -2.42 | Q55: 4.99875 | R55: -2.42 | S55: 4.99875 | T55: -3.26 | U55: 1.711666667
A56: 2025 | B56: 6 | C56: 3 | D56: 6 | E56: 45811.25 | F56: 2.23 | G56: Valid | H56: 1.7625 | I56: 2.9 | J56: Valid | K56: 5.021666667 | N56: 2.23 | O56: 1.7625 | P56: 2.9 | Q56: 5.021666667 | R56: 2.9 | S56: 5.021666667 | T56: 2.23 | U56: 1.7625
A57: 2025 | B57: 6 | C57: 3 | D57: 7 | E57: 45811.29167 | F57: -3.17 | G57: Valid | H57: 1.605 | I57: -2.43 | J57: Valid | K57: 4.762916667 | N57: -3.17 | O57: 1.605 | P57: -2.43 | Q57: 4.762916667 | R57: -2.43 | S57: 4.762916667 | T57: -3.17 | U57: 1.605
A58: 2025 | B58: 6 | C58: 3 | D58: 8 | E58: 45811.33333 | F58: 3.8 | G58: Valid | H58: 1.691666667 | I58: 4.57 | J58: Valid | K58: 4.7725 | N58: 3.8 | O58: 1.691666667 | P58: 4.57 | Q58: 4.7725 | R58: 4.57 | S58: 4.7725 | T58: 3.8 | U58: 1.691666667
A59: 2025 | B59: 6 | C59: 3 | D59: 9 | E59: 45811.375 | F59: -1.48 | G59: Valid | H59: 1.4575 | I59: -0.67 | J59: Valid | K59: 4.4475 | N59: -1.48 | O59: 1.4575 | P59: -0.67 | Q59: 4.4475 | R59: -0.67 | S59: 4.4475 | T59: -1.48 | U59: 1.4575
A60: 2025 | B60: 6 | C60: 3 | D60: 10 | E60: 45811.41667 | F60: 2.11 | G60: Valid | H60: 1.330416667 | I60: -0.67 | J60: Valid | K60: 3.995833333 | N60: 2.11 | O60: 1.330416667 | P60: -0.67 | Q60: 3.995833333 | R60: -0.67 | S60: 3.995833333 | T60: 2.11 | U60: 1.330416667
A61: 2025 | B61: 6 | C61: 3 | D61: 11 | E61: 45811.45833 | F61: -0.06 | G61: Valid | H61: 1.129166667 | I61: 0.19 | J61: Valid | K61: 3.590416667 | N61: -0.06 | O61: 1.129166667 | P61: 0.19 | Q61: 3.590416667 | R61: 0.19 | S61: 3.590416667 | T61: -0.06 | U61: 1.129166667
A62: 2025 | B62: 6 | C62: 3 | D62: 12 | E62: 45811.5 | F62: 0.32 | G62: Valid | H62: 0.94375 | I62: 1.42 | J62: Valid | K62: 3.34125 | N62: 0.32 | O62: 0.94375 | P62: 1.42 | Q62: 3.34125 | R62: 1.42 | S62: 3.34125 | T62: 0.32 | U62: 0.94375
A63: 2025 | B63: 6 | C63: 3 | D63: 13 | E63: 45811.54167 | F63: 0.32 | G63: Valid | H63: 0.8408333333 | I63: 6.99 | J63: Valid | K63: 2.840833333 | N63: 0.32 | O63: 0.8408333333 | P63: 6.99 | Q63: 2.840833333 | R63: 6.99 | S63: 2.840833333 | T63: 0.32 | U63: 0.8408333333
A64: 2025 | B64: 6 | C64: 3 | D64: 14 | E64: 45811.58333 | F64: 4.7 | G64: Valid | H64: 1 | I64: 5.62 | J64: Valid | K64: 2.742083333 | N64: 4.7 | O64: 1 | P64: 5.62 | Q64: 2.742083333 | R64: 5.62 | S64: 2.742083333 | T64: 4.7 | U64: 1
A65: 2025 | B65: 6 | C65: 3 | D65: 15 | E65: 45811.625 | F65: 4.7 | G65: Valid | H65: 1.150416667 | I65: 5.62 | J65: Valid | K65: 2.84375 | N65: 4.7 | O65: 1.150416667 | P65: 5.62 | Q65: 2.84375 | R65: 5.62 | S65: 2.84375 | T65: 4.7 | U65: 1.150416667
A66: 2025 | B66: 6 | C66: 3 | D66: 16 | E66: 45811.66667 | F66: 4.21 | G66: Valid | H66: 1.280416667 | I66: 6.18 | J66: Valid | K66: 2.950833333 | N66: 4.21 | O66: =IF(G66="Valid", H66, NA()) -> 1.280416667 | P66: =IF(J66="Valid", I66, NA()) -> 6.18 | Q66: =IF(J66="Valid", K66, NA()) -> 2.950833333 | R66: 6.18 | S66: 2.950833333 | T66: 4.21 | U66: 1.280416667
A67: 2025 | B67: 6 | C67: 3 | D67: 17 | E67: 45811.70833 | F67: -1.81 | G67: Valid | H67: 1.047916667 | I67: -0.05 | J67: Valid | K67: 2.440833333 | N67: -1.81 | O67: 1.047916667 | P67: -0.05 | Q67: 2.440833333 | R67: -0.05 | S67: 2.440833333 | T67: -1.81 | U67: 1.047916667
A68: 2025 | B68: 6 | C68: 3 | D68: =IF(D67=23,0,D67+1) -> 18 | E68: =E67+0.0416666666666666 -> 45811.75 | F68: 3.23 | G68: Valid | H68: 1.117083333 | I68: 4.45 | J68: Valid | K68: 2.274166667 | N68: 3.23 | O68: 1.117083333 | P68: 4.45 | Q68: 2.274166667 | R68: 4.45 | S68: 2.274166667 | T68: 3.23 | U68: 1.117083333
A69: 2025 | B69: 6 | C69: 3 | D69: 19 | E69: 45811.79167 | F69: 5.16 | G69: Valid | H69: 1.242916667 | I69: 5.87 | J69: Valid | K69: 2.267083333 | N69: 5.16 | O69: 1.242916667 | P69: 5.87 | Q69: 2.267083333 | R69: 5.87 | S69: 2.267083333 | T69: 5.16 | U69: 1.242916667
A70: 2025 | B70: 6 | C70: 3 | D70: 20 | E70: 45811.83333 | F70: 2.61 | G70: Valid | H70: 1.275 | I70: 3.87 | J70: Valid | K70: 2.2175 | N70: 2.61 | O70: 1.275 | P70: 3.87 | Q70: 2.2175 | R70: 3.87 | S70: 2.2175 | T70: 2.61 | U70: 1.275
A71: 2025 | B71: 6 | C71: 3 | D71: 21 | E71: 45811.875 | F71: -4.1 | G71: Valid | H71: 1.035833333 | I71: -2.52 | J71: Valid | K71: 1.989583333 | N71: -4.1 | O71: 1.035833333 | P71: -2.52 | Q71: 1.989583333 | R71: -2.52 | S71: 1.989583333 | T71: -4.1 | U71: 1.035833333
A72: 2025 | B72: 6 | C72: 3 | D72: 22 | E72: 45811.91667 | F72: 4.65 | G72: Valid | H72: 1.25875 | I72: 6.09 | J72: Valid | K72: 2.212916667 | N72: 4.65 | O72: 1.25875 | P72: 6.09 | Q72: 2.212916667 | R72: 6.09 | S72: 2.212916667 | T72: 4.65 | U72: 1.25875
A73: 2025 | B73: 6 | C73: 3 | D73: 23 | E73: 45811.95833 | F73: 4.32 | G73: Valid | H73: 1.29375 | I73: 5.78 | J73: Valid | K73: 2.258333333 | N73: 4.32 | O73: 1.29375 | P73: 5.78 | Q73: 2.258333333 | R73: 5.78 | S73: 2.258333333 | T73: 4.32 | U73: 1.29375
A74: 2025 | B74: 6 | C74: 4 | D74: 0 | E74: 45812 | F74: -0.32 | G74: Valid | H74: 1.283333333 | I74: 1.18 | J74: Valid | K74: 2.234166667 | N74: -0.32 | O74: 1.283333333 | P74: 1.18 | Q74: 2.234166667 | R74: 1.18 | S74: 2.234166667 | T74: -0.32 | U74: 1.283333333
A75: 2025 | B75: 6 | C75: 4 | D75: 1 | E75: 45812.04167 | F75: 3.38 | G75: Valid | H75: 1.4425 | I75: 4.83 | J75: Valid | K75: 2.39 | N75: 3.38 | O75: 1.4425 | P75: 4.83 | Q75: 2.39 | R75: 4.83 | S75: 2.39 | T75: 3.38 | U75: 1.4425
A76: 2025 | B76: 6 | C76: 4 | D76: 2 | E76: 45812.08333 | F76: 2.31 | G76: Valid | H76: 1.557083333 | I76: 3.24 | J76: Valid | K76: 2.547916667 | N76: 2.31 | O76: 1.557083333 | P76: 3.24 | Q76: 2.547916667 | R76: 3.24 | S76: 2.547916667 | T76: 2.31 | U76: 1.557083333
A77: 2025 | B77: 6 | C77: 4 | D77: 3 | E77: 45812.125 | F77: 2.31 | G77: Valid | H77: 1.58 | I77: 1.34 | J77: Valid | K77: 2.4325 | N77: 2.31 | O77: 1.58 | P77: 1.34 | Q77: 2.4325 | R77: 1.34 | S77: 2.4325 | T77: 2.31 | U77: 1.58
A78: 2025 | B78: 6 | C78: 4 | D78: 4 | E78: 45812.16667 | F78: 0.88 | G78: Valid | H78: 1.543333333 | I78: 1.36 | J78: Valid | K78: 2.614166667 | N78: 0.88 | O78: 1.543333333 | P78: 1.36 | Q78: 2.614166667 | R78: 1.36 | S78: 2.614166667 | T78: 0.88 | U78: 1.543333333
A79: 2025 | B79: 6 | C79: 4 | D79: 5 | E79: 45812.20833 | F79: 0.88 | G79: Valid | H79: 1.715833333 | I79: 2.6 | J79: Valid | K79: 2.823333333 | N79: 0.88 | O79: 1.715833333 | P79: 2.6 | Q79: 2.823333333 | R79: 2.6 | S79: 2.823333333 | T79: 0.88 | U79: 1.715833333
A80: 2025 | B80: 6 | C80: 4 | D80: 6 | E80: 45812.25 | F80: 1.68 | G80: Valid | H80: 1.692916667 | I80: 3.53 | J80: Valid | K80: 2.849583333 | N80: 1.68 | O80: 1.692916667 | P80: 3.53 | Q80: 2.849583333 | R80: 3.53 | S80: 2.849583333 | T80: 1.68 | U80: 1.692916667
A81: 2025 | B81: 6 | C81: 4 | D81: 7 | E81: 45812.29167 | F81: 4.13 | G81: Valid | H81: 1.997083333 | I81: 5.56 | J81: Valid | K81: 3.1825 | N81: 4.13 | O81: 1.997083333 | P81: 5.56 | Q81: 3.1825 | R81: 5.56 | S81: 3.1825 | T81: 4.13 | U81: 1.997083333
A82: 2025 | B82: 6 | C82: 4 | D82: 8 | E82: 45812.33333 | F82: 0.97 | G82: Valid | H82: 1.879166667 | I82: 4.16 | J82: Valid | K82: 3.165416667 | N82: 0.97 | O82: 1.879166667 | P82: 4.16 | Q82: 3.165416667 | R82: 4.16 | S82: 3.165416667 | T82: 0.97 | U82: 1.879166667
A83: 2025 | B83: 6 | C83: 4 | D83: 9 | E83: 45812.375 | F83: 3.27 | G83: Valid | H83: 2.077083333 | I83: 6.45 | J83: Valid | K83: 3.462083333 | N83: 3.27 | O83: 2.077083333 | P83: 6.45 | Q83: 3.462083333 | R83: 6.45 | S83: 3.462083333 | T83: 3.27 | U83: 2.077083333
A84: 2025 | B84: 6 | C84: 4 | D84: 10 | E84: 45812.41667 | F84: 5.14 | G84: Valid | H84: 2.203333333 | I84: 8.23 | J84: Valid | K84: 3.832916667 | N84: 5.14 | O84: 2.203333333 | P84: 8.23 | Q84: 3.832916667 | R84: 8.23 | S84: 3.832916667 | T84: 5.14 | U84: 2.203333333
A85: 2025 | B85: 6 | C85: 4 | D85: 11 | E85: 45812.45833 | F85: 1.8 | G85: Valid | H85: 2.280833333 | I85: 5.13 | J85: Valid | K85: 4.03875 | N85: 1.8 | O85: 2.280833333 | P85: 5.13 | Q85: 4.03875 | R85: 5.13 | S85: 4.03875 | T85: 1.8 | U85: 2.280833333
A86: 2025 | B86: 6 | C86: 4 | D86: 12 | E86: 45812.5 | F86: 7.57 | G86: Valid | H86: 2.582916667 | I86: 10.85 | J86: Valid | K86: 4.431666667 | N86: 7.57 | O86: 2.582916667 | P86: 10.85 | Q86: 4.431666667 | R86: 10.85 | S86: 4.431666667 | T86: 7.57 | U86: 2.582916667
A87: 2025 | B87: 6 | C87: 4 | D87: 13 | E87: 45812.54167 | F87: 2.6 | G87: Valid | H87: 2.677916667 | I87: 5.53 | J87: Valid | K87: 4.370833333 | N87: 2.6 | O87: 2.677916667 | P87: 5.53 | Q87: 4.370833333 | R87: 5.53 | S87: 4.370833333 | T87: 2.6 | U87: 2.677916667
A88: 2025 | B88: 6 | C88: 4 | D88: 14 | E88: 45812.58333 | F88: 2.04 | G88: Valid | H88: 2.567083333 | I88: 3.2 | J88: Valid | K88: 4.27 | N88: 2.04 | O88: 2.567083333 | P88: 3.2 | Q88: 4.27 | R88: 3.2 | S88: 4.27 | T88: 2.04 | U88: 2.567083333
A89: 2025 | B89: 6 | C89: 4 | D89: 15 | E89: 45812.625 | F89: 4.76 | G89: Valid | H89: 2.569583333 | I89: 7.58 | J89: Valid | K89: 4.351666667 | N89: 4.76 | O89: 2.569583333 | P89: 7.58 | Q89: 4.351666667 | R89: 7.58 | S89: 4.351666667 | T89: 4.76 | U89: 2.569583333
A90: 2025 | B90: 6 | C90: 4 | D90: 16 | E90: 45812.66667 | F90: 1.46 | G90: Valid | H90: 2.455 | I90: 6.31 | J90: Valid | K90: 4.357083333 | N90: 1.46 | O90: 2.455 | P90: 6.31 | Q90: 4.357083333 | R90: 6.31 | S90: 4.357083333 | T90: 1.46 | U90: 2.455
A91: 2025 | B91: 6 | C91: =C67+1 -> 4 | D91: 17 | E91: 45812.70833 | F91: 2.41 | G91: Valid | H91: 2.630833333 | I91: 4.31 | J91: Valid | K91: 4.53875 | N91: 2.41 | O91: 2.630833333 | P91: 4.31 | Q91: 4.53875 | R91: 4.31 | S91: 4.53875 | T91: 2.41 | U91: 2.630833333
A92: 2025 | B92: 6 | C92: 4 | D92: 18 | E92: 45812.75 | F92: 3.26 | G92: Valid | H92: 2.632083333 | I92: 4.59 | J92: Valid | K92: 4.544583333 | N92: 3.26 | O92: 2.632083333 | P92: 4.59 | Q92: 4.544583333 | R92: 4.59 | S92: 4.544583333 | T92: 3.26 | U92: 2.632083333
A93: 2025 | B93: 6 | C93: 4 | D93: 19 | E93: 45812.79167 | F93: -0.55 | G93: Valid | H93: 2.394166667 | I93: -0.36 | J93: Valid | K93: 4.285 | N93: -0.55 | O93: 2.394166667 | P93: -0.36 | Q93: 4.285 | R93: -0.36 | S93: 4.285 | T93: -0.55 | U93: 2.394166667
A94: 2025 | B94: 6 | C94: 4 | D94: 20 | E94: 45812.83333 | F94: 3.24 | G94: Valid | H94: 2.420416667 | I94: 3.59 | J94: Valid | K94: 4.273333333 | N94: 3.24 | O94: 2.420416667 | P94: 3.59 | Q94: 4.273333333 | R94: 3.59 | S94: 4.273333333 | T94: 3.24 | U94: 2.420416667
A95: 2025 | B95: 6 | C95: 4 | D95: 21 | E95: 45812.875 | F95: 1.91 | G95: Valid | H95: 2.670833333 | I95: 2.21 | J95: Valid | K95: 4.470416667 | N95: 1.91 | O95: 2.670833333 | P95: 2.21 | Q95: 4.470416667 | R95: 2.21 | S95: 4.470416667 | T95: 1.91 | U95: 2.670833333
A96: 2025 | B96: 6 | C96: 4 | D96: 22 | E96: 45812.91667 | F96: -0.26 | G96: Valid | H96: 2.46625 | I96: 0.14 | J96: Valid | K96: 4.2225 | N96: -0.26 | O96: 2.46625 | P96: 0.14 | Q96: 4.2225 | R96: 0.14 | S96: 4.2225 | T96: -0.26 | U96: 2.46625
A97: 2025 | B97: 6 | C97: 4 | D97: 23 | E97: 45812.95833 | F97: -0.26 | G97: Valid | H97: 2.275416667 | I97: 4.73 | J97: Valid | K97: 4.17875 | N97: -0.26 | O97: 2.275416667 | P97: 4.73 | Q97: 4.17875 | R97: 4.73 | S97: 4.17875 | T97: -0.26 | U97: 2.275416667
A98: 2025 | B98: 6 | C98: 5 | D98: 0 | E98: 45813 | F98: -0.62 | G98: Valid | H98: 2.262916667 | I98: -0.21 | J98: Valid | K98: 4.120833333 | N98: -0.62 | O98: 2.262916667 | P98: -0.21 | Q98: 4.120833333 | R98: -0.21 | S98: 4.120833333 | T98: -0.62 | U98: 2.262916667
A99: 2025 | B99: 6 | C99: 5 | D99: 1 | E99: 45813.04167 | F99: -0.62 | G99: Valid | H99: 2.09625 | I99: 2.06 | J99: Valid | K99: 4.005416667 | N99: -0.62 | O99: 2.09625 | P99: 2.06 | Q99: 4.005416667 | R99: 2.06 | S99: 4.005416667 | T99: -0.62 | U99: 2.09625
A100: 2025 | B100: 6 | C100: 5 | D100: 2 | E100: 45813.08333 | F100: 4.91 | G100: Valid | H100: 2.204583333 | I100: 4.28 | J100: Valid | K100: 4.04875 | N100: 4.91 | O100: 2.204583333 | P100: 4.28 | Q100: 4.04875 | R100: 4.28 | S100: 4.04875 | T100: 4.91 | U100: 2.204583333
A101: 2025 | B101: 6 | C101: 5 | D101: 3 | E101: 45813.125 | F101: 1.32 | G101: Valid | H101: 2.163333333 | I101: 1.95 | J101: Valid | K101: 4.074166667 | N101: 1.32 | O101: 2.163333333 | P101: 1.95 | Q101: 4.074166667 | R101: 1.95 | S101: 4.074166667 | T101: 1.32 | U101: 2.163333333
A102: 2025 | B102: 6 | C102: 5 | D102: 4 | E102: 45813.16667 | F102: 4.47 | G102: Valid | H102: 2.312916667 | I102: 4.87 | J102: Valid | K102: 4.220416667 | N102: 4.47 | O102: 2.312916667 | P102: 4.87 | Q102: 4.220416667 | R102: 4.87 | S102: 4.220416667 | T102: 4.47 | U102: 2.312916667
A103: 2025 | B103: 6 | C103: 5 | D103: 5 | E103: 45813.20833 | F103: 2.88 | G103: Valid | H103: 2.39625 | I103: 2.83 | J103: Valid | K103: 4.23 | N103: 2.88 | O103: 2.39625 | P103: 2.83 | Q103: 4.23 | R103: 2.83 | S103: 4.23 | T103: 2.88 | U103: 2.39625
A104: 2025 | B104: 6 | C104: 5 | D104: 6 | E104: 45813.25 | F104: 4.53 | G104: Valid | H104: 2.515 | I104: 4.17 | J104: Valid | K104: 4.256666667 | N104: 4.53 | O104: 2.515 | P104: 4.17 | Q104: 4.256666667 | R104: 4.17 | S104: 4.256666667 | T104: 4.53 | U104: 2.515
A105: 2025 | B105: 6 | C105: 5 | D105: 7 | E105: 45813.29167 | F105: 2.64 | G105: Valid | H105: 2.452916667 | I105: 2.84 | J105: Valid | K105: 4.143333333 | N105: 2.64 | O105: 2.452916667 | P105: 2.84 | Q105: 4.143333333 | R105: 2.84 | S105: 4.143333333 | T105: 2.64 | U105: 2.452916667
A106: 2025 | B106: 6 | C106: 5 | D106: 8 | E106: 45813.33333 | F106: =NA() ->  | G106: Invalid | H106: =NA() ->  | I106: =NA() ->  | J106: Invalid | K106: =NA() ->  | L106: Power Failure | M106: Power outage - system reset
A107: 2025 | B107: 6 | C107: 5 | D107: 9 | E107: 45813.375 | F107: =NA() ->  | G107: Invalid | H107: =NA() ->  | I107: =NA() ->  | J107: Invalid | K107: =NA() ->  | L107: Power Failure | M107: Power outage - system reset
A108: 2025 | B108: 6 | C108: 5 | D108: 10 | E108: 45813.41667 | F108: =NA() ->  | G108: Invalid | H108: =NA() ->  | I108: =NA() ->  | J108: Invalid | K108: =NA() ->  | L108: Power Failure | M108: Power outage - system reset | N108: =IF(G108="Valid", F108, NA()) -> 
A109: 2025 | B109: 6 | C109: 5 | D109: 11 | E109: 45813.45833 | F109: =NA() ->  | G109: Invalid | H109: =NA() ->  | I109: =NA() ->  | J109: Invalid | K109: =NA() ->  | L109: Power Failure | M109: Power outage - system reset
A110: 2025 | B110: 6 | C110: 5 | D110: 12 | E110: 45813.5 | F110: =NA() ->  | G110: Invalid | H110: =NA() ->  | I110: =NA() ->  | J110: Invalid | K110: =NA() ->  | L110: Power Failure | M110: Power outage - system reset
A111: 2025 | B111: 6 | C111: 5 | D111: 13 | E111: 45813.54167 | F111: =NA() ->  | G111: Invalid | H111: =NA() ->  | I111: =NA() ->  | J111: Invalid | K111: =NA() ->  | L111: Power Failure | M111: Power outage - system reset
A112: 2025 | B112: 6 | C112: 5 | D112: 14 | E112: 45813.58333 | F112: =NA() ->  | G112: Invalid | H112: =NA() ->  | I112: =NA() ->  | J112: Invalid | K112: =NA() ->  | L112: Power Failure | M112: Power outage - system reset & <18hrs of valid 1hr data for 24hr rolling average
A113: 2025 | B113: 6 | C113: 5 | D113: 15 | E113: 45813.625 | F113: =NA() ->  | G113: Invalid | H113: =NA() ->  | I113: =NA() ->  | J113: Invalid | K113: =NA() ->  | L113: Power Failure | M113: Power outage - system reset & <18hrs of valid 1hr data for 24hr rolling average
A114: 2025 | B114: 6 | C114: 5 | D114: 16 | E114: 45813.66667 | F114: =NA() ->  | G114: Invalid | H114: =NA() ->  | I114: =NA() ->  | J114: Invalid | K114: =NA() ->  | L114: Power Failure | M114: Power outage - system reset & <18hrs of valid 1hr data for 24hr rolling average
A115: 2025 | B115: 6 | C115: 5 | D115: 17 | E115: 45813.70833 | F115: =NA() ->  | G115: Invalid | H115: =NA() ->  | I115: =NA() ->  | J115: Invalid | K115: =NA() ->  | L115: Power Failure | M115: Power outage - system reset & <18hrs of valid 1hr data for 24hr rolling average
A116: 2025 | B116: 6 | C116: 5 | D116: 18 | E116: 45813.75 | F116: =NA() ->  | G116: Invalid | H116: =NA() ->  | I116: =NA() ->  | J116: Invalid | K116: =NA() ->  | L116: Calibration Error | M116: System Reset & <18hr of valid 1hr data for 24-hr rolling average
A117: 2025 | B117: 6 | C117: 5 | D117: 19 | E117: 45813.79167 | F117: =NA() ->  | G117: Invalid | H117: =NA() ->  | I117: =NA() ->  | J117: Invalid | K117: =NA() ->  | L117: Calibration Error | M117: System Reset & <18hr of valid 1hr data for 24-hr rolling average
A118: 2025 | B118: 6 | C118: 5 | D118: 20 | E118: 45813.83333 | F118: =NA() ->  | G118: Invalid | H118: =NA() ->  | I118: =NA() ->  | J118: Invalid | K118: =NA() ->  | L118: Calibration Error | M118: System Reset & <18hr of valid 1hr data for 24-hr rolling average
A119: 2025 | B119: 6 | C119: 5 | D119: 21 | E119: 45813.875 | F119: =NA() ->  | G119: Invalid | H119: =NA() ->  | I119: =NA() ->  | J119: Invalid | K119: =NA() ->  | L119: Calibration Error | M119: System Reset & <18hr of valid 1hr data for 24-hr rolling average
A120: 2025 | B120: 6 | C120: 5 | D120: 22 | E120: 45813.91667 | F120: =NA() ->  | G120: Invalid | H120: =NA() ->  | I120: =NA() ->  | J120: Invalid | K120: =NA() ->  | L120: Calibration Error | M120: System Reset & <18hr of valid 1hr data for 24-hr rolling average
A121: 2025 | B121: 6 | C121: 5 | D121: 23 | E121: 45813.95833 | F121: =NA() ->  | G121: Invalid | H121: =NA() ->  | I121: =NA() ->  | J121: Invalid | K121: =NA() ->  | L121: Calibration Error | M121: System Reset & <18hr of valid 1hr data for 24-hr rolling average
A122: 2025 | B122: 6 | C122: 6 | D122: 0 | E122: 45814 | F122: =NA() ->  | G122: Invalid | H122: =NA() ->  | I122: =NA() ->  | J122: Invalid | K122: =NA() ->  | L122: Calibration Error | M122: System Reset & <18hr of valid 1hr data for 24-hr rolling average | N122: =IF(G122="Valid", F122, NA()) -> 
A123: 2025 | B123: 6 | C123: 6 | D123: 1 | E123: 45814.04167 | F123: =NA() ->  | G123: Invalid | H123: =NA() ->  | I123: =NA() ->  | J123: Invalid | K123: =NA() ->  | L123: Calibration Error | M123: System Reset & <18hr of valid 1hr data for 24-hr rolling average
A124: 2025 | B124: 6 | C124: 6 | D124: 2 | E124: 45814.08333 | F124: =NA() ->  | G124: Invalid | H124: =NA() ->  | I124: =NA() ->  | J124: Invalid | K124: =NA() ->  | L124: Calibration Error | M124: System Reset & <18hr of valid 1hr data for 24-hr rolling average
A125: 2025 | B125: 6 | C125: 6 | D125: 3 | E125: 45814.125 | F125: =NA() ->  | G125: Invalid | H125: =NA() ->  | I125: =NA() ->  | J125: Invalid | K125: =NA() ->  | L125: Calibration Error | M125: System Reset & <18hr of valid 1hr data for 24-hr rolling average
A126: 2025 | B126: 6 | C126: 6 | D126: 4 | E126: 45814.16667 | F126: =NA() ->  | G126: Invalid | H126: =NA() ->  | I126: =NA() ->  | J126: Invalid | K126: =NA() ->  | L126: Calibration Error | M126: System Reset & <18hr of valid 1hr data for 24-hr rolling average
A127: 2025 | B127: 6 | C127: 6 | D127: 5 | E127: 45814.20833 | F127: =NA() ->  | G127: Invalid | H127: =NA() ->  | I127: =NA() ->  | J127: Invalid | K127: =NA() ->  | L127: Calibration Error | M127: System Reset & <18hr of valid 1hr data for 24-hr rolling average
A128: 2025 | B128: 6 | C128: 6 | D128: 6 | E128: 45814.25 | F128: =NA() ->  | G128: Invalid | H128: =NA() ->  | I128: =NA() ->  | J128: Invalid | K128: =NA() ->  | L128: Calibration Error | M128: System Reset & <18hr of valid 1hr data for 24-hr rolling average
A129: 2025 | B129: 6 | C129: 6 | D129: 7 | E129: 45814.29167 | F129: =NA() ->  | G129: Invalid | H129: =NA() ->  | I129: =NA() ->  | J129: Invalid | K129: =NA() ->  | L129: Calibration Error | M129: System Reset & <18hr of valid 1hr data for 24-hr rolling average
A130: 2025 | B130: 6 | C130: 6 | D130: 8 | E130: 45814.33333 | F130: =NA() ->  | G130: Invalid | H130: =NA() ->  | I130: =NA() ->  | J130: Invalid | K130: =NA() ->  | L130: Power Failure | M130: Power outage - system reset & <18hrs of valid 1hr data for 24hr rolling average | N130: =IF(G130="Valid", F130, NA()) ->  | O130: =IF(G130="Valid", H130, NA()) ->  | P130: =IF(J130="Valid", I130, NA()) ->  | Q130: =IF(J130="Valid", K130, NA()) -> 
A131: 2025 | B131: 6 | C131: 6 | D131: 9 | E131: 45814.375 | F131: =NA() ->  | G131: Invalid | H131: =NA() ->  | I131: =NA() ->  | J131: Invalid | K131: =NA() ->  | L131: Power Failure | M131: Power outage - system reset & <18hrs of valid 1hr data for 24hr rolling average
A132: 2025 | B132: 6 | C132: 6 | D132: =IF(D131=23,0,D131+1) -> 10 | E132: =E131+0.0416666666666666 -> 45814.41667 | F132: =NA() ->  | G132: Invalid | H132: =NA() ->  | I132: =NA() ->  | J132: Invalid | K132: =NA() ->  | L132: Power Failure | M132: Power outage - system reset & <18hrs of valid 1hr data for 24hr rolling average
A133: 2025 | B133: 6 | C133: 6 | D133: 11 | E133: 45814.45833 | F133: =NA() ->  | G133: Invalid | H133: =NA() ->  | I133: =NA() ->  | J133: Invalid | K133: =NA() ->  | L133: Power Failure | M133: Power outage - system reset & <18hrs of valid 1hr data for 24hr rolling average
A134: 2025 | B134: 6 | C134: 6 | D134: 12 | E134: 45814.5 | F134: =NA() ->  | G134: Invalid | H134: =NA() ->  | I134: =NA() ->  | J134: Invalid | K134: =NA() ->  | L134: Power Failure | M134: Power outage - system reset & <18hrs of valid 1hr data for 24hr rolling average
A135: 2025 | B135: 6 | C135: 6 | D135: 13 | E135: 45814.54167 | F135: =NA() ->  | G135: Invalid | H135: =NA() ->  | I135: =NA() ->  | J135: Invalid | K135: =NA() ->  | L135: Power Failure | M135: Power outage - system reset & <18hrs of valid 1hr data for 24hr rolling average
A136: 2025 | B136: 6 | C136: 6 | D136: 14 | E136: 45814.58333 | F136: =NA() ->  | G136: Invalid | H136: =NA() ->  | I136: =NA() ->  | J136: Invalid | K136: =NA() ->  | L136: Power Failure | M136: Power outage - system reset & <18hrs of valid 1hr data for 24hr rolling average
A137: 2025 | B137: 6 | C137: 6 | D137: 15 | E137: 45814.625 | F137: =NA() ->  | G137: Invalid | H137: =NA() ->  | I137: =NA() ->  | J137: Invalid | K137: =NA() ->  | L137: Power Failure | M137: Power outage - system reset & <18hrs of valid 1hr data for 24hr rolling average
A138: 2025 | B138: 6 | C138: 6 | D138: 16 | E138: 45814.66667 | F138: =NA() ->  | G138: Invalid | H138: =NA() ->  | I138: =NA() ->  | J138: Invalid | K138: =NA() ->  | L138: Calibration Error | M138: System Reset & <18hr of valid 1hr data for 24-hr rolling average
A139: 2025 | B139: 6 | C139: 6 | D139: 17 | E139: 45814.70833 | F139: =NA() ->  | G139: Invalid | H139: =NA() ->  | I139: =NA() ->  | J139: Invalid | K139: =NA() ->  | L139: Calibration Error | M139: System Reset & <18hr of valid 1hr data for 24-hr rolling average
A140: 2025 | B140: 6 | C140: 6 | D140: 18 | E140: 45814.75 | F140: =NA() ->  | G140: Invalid | H140: =NA() ->  | I140: =NA() ->  | J140: Invalid | K140: =NA() ->  | L140: Calibration Error | M140: System Reset & <18hr of valid 1hr data for 24-hr rolling average
A141: 2025 | B141: 6 | C141: 6 | D141: 19 | E141: 45814.79167 | F141: =NA() ->  | G141: Invalid | H141: =NA() ->  | I141: =NA() ->  | J141: Invalid | K141: =NA() ->  | L141: Calibration Error | M141: System Reset & <18hr of valid 1hr data for 24-hr rolling average
A142: 2025 | B142: 6 | C142: 6 | D142: 20 | E142: 45814.83333 | F142: =NA() ->  | G142: Invalid | H142: =NA() ->  | I142: =NA() ->  | J142: Invalid | K142: =NA() ->  | L142: Calibration Error | M142: System Reset & <18hr of valid 1hr data for 24-hr rolling average
A143: 2025 | B143: 6 | C143: 6 | D143: 21 | E143: 45814.875 | F143: =NA() ->  | G143: Invalid | H143: =NA() ->  | I143: =NA() ->  | J143: Invalid | K143: =NA() ->  | L143: Calibration Error | M143: System Reset & <18hr of valid 1hr data for 24-hr rolling average
A144: 2025 | B144: 6 | C144: 6 | D144: 22 | E144: 45814.91667 | F144: =NA() ->  | G144: Invalid | H144: =NA() ->  | I144: =NA() ->  | J144: Invalid | K144: =NA() ->  | L144: Calibration Error | M144: System Reset & <18hr of valid 1hr data for 24-hr rolling average
A145: 2025 | B145: 6 | C145: 6 | D145: 23 | E145: 45814.95833 | F145: =NA() ->  | G145: Invalid | H145: =NA() ->  | I145: =NA() ->  | J145: Invalid | K145: =NA() ->  | L145: Calibration Error | M145: System Reset & <18hr of valid 1hr data for 24-hr rolling average
A146: 2025 | B146: 6 | C146: 7 | D146: 0 | E146: 45815 | F146: =NA() ->  | G146: Invalid | H146: =NA() ->  | I146: =NA() ->  | J146: Invalid | K146: =NA() ->  | L146: Calibration Error | M146: System Reset & <18hr of valid 1hr data for 24-hr rolling average
A147: 2025 | B147: 6 | C147: 7 | D147: 1 | E147: 45815.04167 | F147: =NA() ->  | G147: Invalid | H147: =NA() ->  | I147: =NA() ->  | J147: Invalid | K147: =NA() ->  | L147: Calibration Error | M147: System Reset & <18hr of valid 1hr data for 24-hr rolling average
A148: 2025 | B148: 6 | C148: 7 | D148: 2 | E148: 45815.08333 | F148: =NA() ->  | G148: Invalid | H148: =NA() ->  | I148: =NA() ->  | J148: Invalid | K148: =NA() ->  | L148: Calibration Error | M148: System Reset & <18hr of valid 1hr data for 24-hr rolling average
A149: 2025 | B149: 6 | C149: 7 | D149: 3 | E149: 45815.125 | F149: =NA() ->  | G149: Invalid | H149: =NA() ->  | I149: =NA() ->  | J149: Invalid | K149: =NA() ->  | L149: Calibration Error | M149: System Reset & <18hr of valid 1hr data for 24-hr rolling average
A150: 2025 | B150: 6 | C150: 7 | D150: 4 | E150: 45815.16667 | F150: =NA() ->  | G150: Invalid | H150: =NA() ->  | I150: =NA() ->  | J150: Invalid | K150: =NA() ->  | L150: Calibration Error | M150: System Reset & <18hr of valid 1hr data for 24-hr rolling average
A151: 2025 | B151: 6 | C151: 7 | D151: 5 | E151: 45815.20833 | F151: =NA() ->  | G151: Invalid | H151: =NA() ->  | I151: =NA() ->  | J151: Invalid | K151: =NA() ->  | L151: Calibration Error | M151: System Reset & <18hr of valid 1hr data for 24-hr rolling average
A152: 2025 | B152: 6 | C152: 7 | D152: 6 | E152: 45815.25 | F152: =NA() ->  | G152: Invalid | H152: =NA() ->  | I152: =NA() ->  | J152: Invalid | K152: =NA() ->  | L152: Calibration Error | M152: System Reset & <18hr of valid 1hr data for 24-hr rolling average
A153: 2025 | B153: 6 | C153: 7 | D153: 7 | E153: 45815.29167 | F153: =NA() ->  | G153: Invalid | H153: =NA() ->  | I153: =NA() ->  | J153: Invalid | K153: =NA() ->  | L153: Calibration Error | M153: System Reset & <18hr of valid 1hr data for 24-hr rolling average
A154: 2025 | B154: 6 | C154: 7 | D154: 8 | E154: 45815.33333 | F154: =NA() ->  | G154: Invalid | H154: =NA() ->  | I154: =NA() ->  | J154: Invalid | K154: =NA() ->  | L154: Calibration Error | M154: System Reset & <18hr of valid 1hr data for 24-hr rolling average
A155: 2025 | B155: 6 | C155: =C131+1 -> 7 | D155: 9 | E155: 45815.375 | F155: 2.24 | G155: Valid | H155: 0.8155555556 | I155: 5.04 | J155: Valid | K155: 2.258888889 | N155: 2.24 | O155: 0.8155555556 | P155: 5.04 | Q155: 2.258888889 | R155: 5.04 | S155: 2.258888889 | T155: 2.24 | U155: 0.8155555556
A156: 2025 | B156: 6 | C156: 7 | D156: 10 | E156: 45815.41667 | F156: 2.39 | G156: Valid | H156: 0.8984210526 | I156: 5.62 | J156: Valid | K156: 2.435789474 | N156: 2.39 | O156: 0.8984210526 | P156: 5.62 | Q156: 2.435789474 | R156: 5.62 | S156: 2.435789474 | T156: 2.39 | U156: 0.8984210526
A157: 2025 | B157: 6 | C157: 7 | D157: 11 | E157: 45815.45833 | F157: 1.43 | G157: Valid | H157: 0.925 | I157: 4.5 | J157: Valid | K157: 2.539 | N157: 1.43 | O157: 0.925 | P157: 4.5 | Q157: 2.539 | R157: 4.5 | S157: 2.539 | T157: 1.43 | U157: 0.925
A158: 2025 | B158: 6 | C158: 7 | D158: 12 | E158: 45815.5 | F158: 3.2 | G158: Valid | H158: 1.033333333 | I158: 6.86 | J158: Valid | K158: 2.744761905 | N158: 3.2 | O158: 1.033333333 | P158: 6.86 | Q158: 2.744761905 | R158: 6.86 | S158: 2.744761905 | T158: 3.2 | U158: 1.033333333
A159: 2025 | B159: 6 | C159: 7 | D159: 13 | E159: 45815.54167 | F159: 3.2 | G159: Valid | H159: 1.131818182 | I159: 6.45 | J159: Valid | K159: 2.913181818 | N159: 3.2 | O159: 1.131818182 | P159: 6.45 | Q159: 2.913181818 | R159: 6.45 | S159: 2.913181818 | T159: 3.2 | U159: 1.131818182
A160: 2025 | B160: 6 | C160: 7 | D160: 14 | E160: 45815.58333 | F160: -0.02 | G160: Valid | H160: 1.08173913 | I160: 2.35 | J160: Valid | K160: 2.888695652 | N160: -0.02 | O160: 1.08173913 | P160: 2.35 | Q160: 2.888695652 | R160: 2.35 | S160: 2.888695652 | T160: -0.02 | U160: 1.08173913
A161: 2025 | B161: 6 | C161: 7 | D161: 15 | E161: 45815.625 | F161: 1.37 | G161: Valid | H161: 1.09375 | I161: 3.88 | J161: Valid | K161: 2.93 | N161: 1.37 | O161: 1.09375 | P161: 3.88 | Q161: 2.93 | R161: 3.88 | S161: 2.93 | T161: 1.37 | U161: 1.09375
A162: 2025 | B162: 6 | C162: 7 | D162: 16 | E162: 45815.66667 | F162: 1.59 | G162: Valid | H162: 1.13 | I162: 4.21 | J162: Valid | K162: 2.922916667 | N162: 1.59 | O162: 1.13 | P162: 4.21 | Q162: 2.922916667 | R162: 4.21 | S162: 2.922916667 | T162: 1.59 | U162: 1.13
A163: 2025 | B163: 6 | C163: 7 | D163: 17 | E163: 45815.70833 | F163: 1.59 | G163: Valid | H163: 1.110416667 | I163: 3.3 | J163: Valid | K163: 2.865416667 | N163: 1.59 | O163: 1.110416667 | P163: 3.3 | Q163: 2.865416667 | R163: 3.3 | S163: 2.865416667 | T163: 1.59 | U163: 1.110416667
A164: 2025 | B164: 6 | C164: 7 | D164: 18 | E164: 45815.75 | F164: 4.62 | G164: Valid | H164: 1.217083333 | I164: 6.71 | J164: Valid | K164: 2.999583333 | N164: 4.62 | O164: 1.217083333 | P164: 6.71 | Q164: 2.999583333 | R164: 6.71 | S164: 2.999583333 | T164: 4.62 | U164: 1.217083333
A165: 2025 | B165: 6 | C165: 7 | D165: 19 | E165: 45815.79167 | F165: 1.2 | G165: Valid | H165: 1.296666667 | I165: 3.51 | J165: Valid | K165: 3.12625 | N165: 1.2 | O165: 1.296666667 | P165: 3.51 | Q165: 3.12625 | R165: 3.51 | S165: 3.12625 | T165: 1.2 | U165: 1.296666667
A166: 2025 | B166: 6 | C166: 7 | D166: 20 | E166: 45815.83333 | F166: 4.34 | G166: Valid | H166: 1.59125 | I166: 5.67 | J166: Valid | K166: 3.40625 | N166: 4.34 | O166: 1.59125 | P166: 5.67 | Q166: 3.40625 | R166: 5.67 | S166: 3.40625 | T166: 4.34 | U166: 1.59125
A167: 2025 | B167: 6 | C167: 7 | D167: 21 | E167: 45815.875 | F167: -1.93 | G167: Valid | H167: 1.40125 | I167: -0.66 | J167: Valid | K167: 3.210833333 | N167: -1.93 | O167: 1.40125 | P167: -0.66 | Q167: 3.210833333 | R167: -0.66 | S167: 3.210833333 | T167: -1.93 | U167: 1.40125
A168: 2025 | B168: 6 | C168: 7 | D168: 22 | E168: 45815.91667 | F168: 2.15 | G168: Valid | H168: 1.494166667 | I168: 5.64 | J168: Valid | K168: 3.40625 | N168: 2.15 | O168: 1.494166667 | P168: 5.64 | Q168: 3.40625 | R168: 5.64 | S168: 3.40625 | T168: 2.15 | U168: 1.494166667
A169: 2025 | B169: 6 | C169: 7 | D169: 23 | E169: 45815.95833 | F169: 0.95 | G169: Valid | H169: 1.40875 | I169: 4.42 | J169: Valid | K169: 3.419166667 | N169: 0.95 | O169: 1.40875 | P169: 4.42 | Q169: 3.419166667 | R169: 4.42 | S169: 3.419166667 | T169: 0.95 | U169: 1.40875
A170: 2025 | B170: 6 | C170: 8 | D170: 0 | E170: 45816 | F170: 1.29 | G170: Valid | H170: 1.519166667 | I170: 4.14 | J170: Valid | K170: 3.595 | N170: 1.29 | O170: 1.519166667 | P170: 4.14 | Q170: 3.595 | R170: 4.14 | S170: 3.595 | T170: 1.29 | U170: 1.519166667
A171: 2025 | B171: 6 | C171: 8 | D171: 1 | E171: 45816.04167 | F171: 5.36 | G171: Valid | H171: 1.793333333 | I171: 7.15 | J171: Valid | K171: 3.88625 | N171: 5.36 | O171: 1.793333333 | P171: 7.15 | Q171: 3.88625 | R171: 7.15 | S171: 3.88625 | T171: 5.36 | U171: 1.793333333
A172: 2025 | B172: 6 | C172: 8 | D172: 2 | E172: 45816.08333 | F172: 10.34 | G172: Valid | H172: 2.149583333 | I172: 12.41 | J172: Valid | K172: 4.2925 | N172: 10.34 | O172: 2.149583333 | P172: 12.41 | Q172: 4.2925 | R172: 12.41 | S172: 4.2925 | T172: 10.34 | U172: 2.149583333
A173: 2025 | B173: 6 | C173: 8 | D173: 3 | E173: 45816.125 | F173: 9.25 | G173: Valid | H173: 2.5 | I173: 10.35 | J173: Valid | K173: 4.663333333 | N173: 9.25 | O173: 2.5 | P173: 10.35 | Q173: 4.663333333 | R173: 10.35 | S173: 4.663333333 | T173: 9.25 | U173: 2.5
A174: 2025 | B174: 6 | C174: 8 | D174: 4 | E174: 45816.16667 | F174: 1.21 | G174: Valid | H174: 2.47125 | I174: 2.91 | J174: Valid | K174: 4.682083333 | N174: 1.21 | O174: 2.47125 | P174: 2.91 | Q174: 4.682083333 | R174: 2.91 | S174: 4.682083333 | T174: 1.21 | U174: 2.47125
A175: 2025 | B175: 6 | C175: 8 | D175: 5 | E175: 45816.20833 | F175: 3.32 | G175: Valid | H175: 2.609583333 | I175: 4.48 | J175: Valid | K175: 4.825 | N175: 3.32 | O175: 2.609583333 | P175: 4.48 | Q175: 4.825 | R175: 4.48 | S175: 4.825 | T175: 3.32 | U175: 2.609583333
A176: 2025 | B176: 6 | C176: 8 | D176: 6 | E176: 45816.25 | F176: 3.64 | G176: Valid | H176: 2.694583333 | I176: 5.01 | J176: Valid | K176: 4.93875 | N176: 3.64 | O176: 2.694583333 | P176: 5.01 | Q176: 4.93875 | R176: 5.01 | S176: 4.93875 | T176: 3.64 | U176: 2.694583333
A177: 2025 | B177: 6 | C177: 8 | D177: 7 | E177: 45816.29167 | F177: 3.65 | G177: Valid | H177: 2.815416667 | I177: 5.25 | J177: Valid | K177: 5.074166667 | N177: 3.65 | O177: 2.815416667 | P177: 5.25 | Q177: 5.074166667 | R177: 5.25 | S177: 5.074166667 | T177: 3.65 | U177: 2.815416667
A178: 2025 | B178: 6 | C178: 8 | D178: 8 | E178: 45816.33333 | F178: 4.18 | G178: Valid | H178: 2.94 | I178: 7.24 | J178: Valid | K178: 5.268333333 | N178: 4.18 | O178: 2.94 | P178: 7.24 | Q178: 5.268333333 | R178: 7.24 | S178: 5.268333333 | T178: 4.18 | U178: 2.94
A179: 2025 | B179: 6 | C179: 8 | D179: 9 | E179: 45816.375 | F179: 4.18 | G179: Valid | H179: 3.020833333 | I179: 9.93 | J179: Valid | K179: 5.472083333 | N179: 4.18 | O179: 3.020833333 | P179: 9.93 | Q179: 5.472083333 | R179: 9.93 | S179: 5.472083333 | T179: 4.18 | U179: 3.020833333
A180: 2025 | B180: 6 | C180: 8 | D180: 10 | E180: 45816.41667 | F180: 4.36 | G180: Valid | H180: 3.102916667 | I180: 10.72 | J180: Valid | K180: 5.684583333 | N180: 4.36 | O180: 3.102916667 | P180: 10.72 | Q180: 5.684583333 | R180: 10.72 | S180: 5.684583333 | T180: 4.36 | U180: 3.102916667
A181: 2025 | B181: 6 | C181: 8 | D181: 11 | E181: 45816.45833 | F181: 4.55 | G181: Valid | H181: 3.232916667 | I181: 10.48 | J181: Valid | K181: 5.93375 | N181: 4.55 | O181: 3.232916667 | P181: 10.48 | Q181: 5.93375 | R181: 10.48 | S181: 5.93375 | T181: 4.55 | U181: 3.232916667
A182: 2025 | B182: 6 | C182: 8 | D182: 12 | E182: 45816.5 | F182: 5.37 | G182: Valid | H182: 3.323333333 | I182: 11.43 | J182: Valid | K182: 6.124166667 | N182: 5.37 | O182: 3.323333333 | P182: 11.43 | Q182: 6.124166667 | R182: 11.43 | S182: 6.124166667 | T182: 5.37 | U182: 3.323333333
A183: 2025 | B183: 6 | C183: 8 | D183: 13 | E183: 45816.54167 | F183: 3.92 | G183: Valid | H183: 3.353333333 | I183: 9.51 | J183: Valid | K183: 6.251666667 | N183: 3.92 | O183: 3.353333333 | P183: 9.51 | Q183: 6.251666667 | R183: 9.51 | S183: 6.251666667 | T183: 3.92 | U183: 3.353333333
A184: 2025 | B184: 6 | C184: 8 | D184: 14 | E184: 45816.58333 | F184: 5.87 | G184: Valid | H184: 3.59875 | I184: 11.33 | J184: Valid | K184: 6.625833333 | N184: 5.87 | O184: 3.59875 | P184: 11.33 | Q184: 6.625833333 | R184: 11.33 | S184: 6.625833333 | T184: 5.87 | U184: 3.59875
A185: 2025 | B185: 6 | C185: 8 | D185: 15 | E185: 45816.625 | F185: 4.31 | G185: Valid | H185: 3.72125 | I185: 9.06 | J185: Valid | K185: 6.841666667 | N185: 4.31 | O185: 3.72125 | P185: 9.06 | Q185: 6.841666667 | R185: 9.06 | S185: 6.841666667 | T185: 4.31 | U185: 3.72125
A186: 2025 | B186: 6 | C186: 8 | D186: 16 | E186: 45816.66667 | F186: 0.3 | G186: Valid | H186: 3.6675 | I186: 3.75 | J186: Valid | K186: 6.8225 | N186: 0.3 | O186: 3.6675 | P186: 3.75 | Q186: 6.8225 | R186: 3.75 | S186: 6.8225 | T186: 0.3 | U186: 3.6675
A187: 2025 | B187: 6 | C187: 8 | D187: 17 | E187: 45816.70833 | F187: 2.12 | G187: Valid | H187: 3.689583333 | I187: 5.37 | J187: Valid | K187: 6.90875 | N187: 2.12 | O187: 3.689583333 | P187: 5.37 | Q187: 6.90875 | R187: 5.37 | S187: 6.90875 | T187: 2.12 | U187: 3.689583333
A188: 2025 | B188: 6 | C188: 8 | D188: 18 | E188: 45816.75 | F188: 3.01 | G188: Valid | H188: 3.6225 | I188: 4.89 | J188: Valid | K188: 6.832916667 | N188: 3.01 | O188: 3.6225 | P188: 4.89 | Q188: 6.832916667 | R188: 4.89 | S188: 6.832916667 | T188: 3.01 | U188: 3.6225
A189: 2025 | B189: 6 | C189: 8 | D189: 19 | E189: 45816.79167 | F189: 3.83 | G189: Valid | H189: 3.732083333 | I189: 5.61 | J189: Valid | K189: 6.920416667 | N189: 3.83 | O189: 3.732083333 | P189: 5.61 | Q189: 6.920416667 | R189: 5.61 | S189: 6.920416667 | T189: 3.83 | U189: 3.732083333
A190: 2025 | B190: 6 | C190: 8 | D190: 20 | E190: 45816.83333 | F190: 0.89 | G190: Valid | H190: 3.588333333 | I190: 2.3 | J190: Valid | K190: 6.78 | N190: 0.89 | O190: 3.588333333 | P190: 2.3 | Q190: 6.78 | R190: 2.3 | S190: 6.78 | T190: 0.89 | U190: 3.588333333
A191: 2025 | B191: 6 | C191: 8 | D191: 21 | E191: 45816.875 | F191: -0.96 | G191: Valid | H191: 3.62875 | I191: 0.05 | J191: Valid | K191: 6.809583333 | N191: -0.96 | O191: 3.62875 | P191: 0.05 | Q191: 6.809583333 | R191: 0.05 | S191: 6.809583333 | T191: -0.96 | U191: 3.62875
A192: 2025 | B192: 6 | C192: 8 | D192: 22 | E192: 45816.91667 | F192: 0.19 | G192: Valid | H192: 3.547083333 | I192: 1.27 | J192: Valid | K192: 6.6275 | N192: 0.19 | O192: 3.547083333 | P192: 1.27 | Q192: 6.6275 | R192: 1.27 | S192: 6.6275 | T192: 0.19 | U192: 3.547083333
A193: 2025 | B193: 6 | C193: 8 | D193: 23 | E193: 45816.95833 | F193: 1.67 | G193: Valid | H193: 3.577083333 | I193: 3.01 | J193: Valid | K193: 6.56875 | N193: 1.67 | O193: 3.577083333 | P193: 3.01 | Q193: 6.56875 | R193: 3.01 | S193: 6.56875 | T193: 1.67 | U193: 3.577083333
A194: 2025 | B194: 6 | C194: 9 | D194: 0 | E194: 45817 | F194: 2.34 | G194: Valid | H194: 3.620833333 | I194: 3.37 | J194: Valid | K194: 6.536666667 | N194: =IF(G194="Valid", F194, NA()) -> 2.34 | O194: =IF(G194="Valid", H194, NA()) -> 3.620833333 | P194: =IF(J194="Valid", I194, NA()) -> 3.37 | Q194: =IF(J194="Valid", K194, NA()) -> 6.536666667 | R194: 3.37 | S194: 6.536666667 | T194: 2.34 | U194: 3.620833333
A195: 2025 | B195: 6 | C195: 9 | D195: 1 | E195: 45817.04167 | F195: 0.74 | G195: Valid | H195: 3.428333333 | I195: 2.61 | J195: Valid | K195: 6.3475 | N195: 0.74 | O195: 3.428333333 | P195: 2.61 | Q195: 6.3475 | R195: 2.61 | S195: 6.3475 | T195: 0.74 | U195: 3.428333333
A196: 2025 | B196: 6 | C196: 9 | D196: =IF(D195=23,0,D195+1) -> 2 | E196: =E195+0.0416666666666666 -> 45817.08333 | F196: 0.79 | G196: Valid | H196: 3.030416667 | I196: 2.37 | J196: Valid | K196: 5.929166667 | N196: 0.79 | O196: 3.030416667 | P196: 2.37 | Q196: 5.929166667 | R196: 2.37 | S196: 5.929166667 | T196: 0.79 | U196: 3.030416667
A197: 2025 | B197: 6 | C197: 9 | D197: 3 | E197: 45817.125 | F197: 1.99 | G197: Valid | H197: 2.727916667 | I197: 3.6 | J197: Valid | K197: 5.647916667 | N197: 1.99 | O197: 2.727916667 | P197: 3.6 | Q197: 5.647916667 | R197: 3.6 | S197: 5.647916667 | T197: 1.99 | U197: 2.727916667
A198: 2025 | B198: 6 | C198: 9 | D198: 4 | E198: 45817.16667 | F198: 5.09 | G198: Valid | H198: 2.889583333 | I198: 5.36 | J198: Valid | K198: 5.75 | N198: 5.09 | O198: 2.889583333 | P198: 5.36 | Q198: 5.75 | R198: 5.36 | S198: 5.75 | T198: 5.09 | U198: 2.889583333
A199: 2025 | B199: 6 | C199: 9 | D199: 5 | E199: 45817.20833 | F199: 3.56 | G199: Valid | H199: 2.899583333 | I199: 3.91 | J199: Valid | K199: 5.72625 | N199: 3.56 | O199: 2.899583333 | P199: 3.91 | Q199: 5.72625 | R199: 3.91 | S199: 5.72625 | T199: 3.56 | U199: 2.899583333
A200: 2025 | B200: 6 | C200: 9 | D200: 6 | E200: 45817.25 | F200: 1.66 | G200: Valid | H200: 2.817083333 | I200: 2.92 | J200: Valid | K200: 5.639166667 | N200: 1.66 | O200: 2.817083333 | P200: 2.92 | Q200: 5.639166667 | R200: 2.92 | S200: 5.639166667 | T200: 1.66 | U200: 2.817083333
... 522 more rows

Sheet Raw data_format
A1: Parameter | B1: Format | C1: Comment | D1: Units of measure | E1: Minimum | F1: Maximum
A2: Year | B2: yyyy | C2: 4 integer format | D2: Not applicable | E2: 2015 | F2: Until reporting ceases
A3: Month | B3: mm | C3: 2 integer format | D3: Not applicable | E3: 1 | F3: 12
A4: Day | B4: dd | C4: 2 integer format | D4: Not applicable | E4: 1 | F4: 31
A5: Hour | B5: hh | C5: 2 integer format | D5: Not applicable | E5: 0 | F5: 23
A6: PM10 | B6: 0 | C6: 1 decimal place resolution | D6: µg/m3 | E6: Negative | F6: Instrument specific
A7: PM2.5 | B7: 0 | C7: 2 decimal place resolution | D7: µg/m3 | E7: Negative | F7: Instrument specific
A8: Status | B8: Text | C8: 7 character format | D8: Not applicable | E8: Valid | F8: Invalid

Sheet Sheet1
